Workbook

Sheet Penyata Untung Rugi
B1: Dua Belas Bulan | P1: Nama Syarikat
B2: UNJURAN UNTUNG & RUGI | AB2: TAHUN FISKAL BERMULA: | AC2: JAN | AD2: 2012
D4: =UPPER(TEXT(DATE(TFTahunMula,TFNoBulan,1),"[$-421]mmm-yy")) -> JAN-12 | E4: =UPPER(TEXT(DATE(TFTahunMula,TFNoBulan+1,1),"[$-421]mmm-yy")) -> FEB-12 | F4: =UPPER(TEXT(DATE(TFTahunMula,TFNoBulan+2,1),"[$-421]mmm-yy")) -> MAR-12 | G4: =UPPER(TEXT(DATE(TFTahunMula,TFNoBulan+3,1),"[$-421]mmm-yy")) -> APR-12 | H4: =UPPER(TEXT(DATE(TFTahunMula,TFNoBulan+4,1),"[$-421]mmm-yy")) -> MEI-12 | I4: =UPPER(TEXT(DATE(TFTahunMula,TFNoBulan+5,1),"[$-421]mmm-yy")) -> JUN-12 | J4: =UPPER(TEXT(DATE(TFTahunMula,TFNoBulan+6,1),"[$-421]mmm-yy")) -> JUL-12 | K4: =UPPER(TEXT(DATE(TFTahunMula,TFNoBulan+7,1),"[$-421]mmm-yy")) -> AGUST-12 | L4: =UPPER(TEXT(DATE(TFTahunMula,TFNoBulan+8,1),"[$-421]mmm-yy")) -> SEP-12 | M4: =UPPER(TEXT(DATE(TFTahunMula,TFNoBulan+9,1),"[$-421]mmm-yy")) -> OKT-12 | N4: =UPPER(TEXT(DATE(TFTahunMula,TFNoBulan+10,1),"[$-421]mmm-yy")) -> NOP-12 | O4: =UPPER(TEXT(DATE(TFTahunMula,TFNoBulan+11,1),"[$-421]mmm-yy")) -> DES-12 | P4: TAHUNAN | Q4: IND % | R4: =LEFT(D4,1)&" %" -> J % | S4: =LEFT(E4,1)&" %" -> F % | T4: M % | U4: A % | V4: M % | W4: J % | X4: J % | Y4: A % | Z4: S % | AA4: O % | AB4: N % | AC4: D % | AD4: TAHUN %
B6: HASIL (JUALAN) | C6: ARAH ALIRAN | D6: m1 | E6: m2 | F6: m3 | G6: m4 | H6: m5 | I6: m6 | J6: m7 | K6: m8 | L6: m9 | M6: m10 | N6: m11 | O6: m12 | P6: Yearly | Q6: Ind % | R6: % m1 | S6: % m2 | T6: % m3 | U6: % m4 | V6: % m5 | W6: % m6 | X6: % m7 | Y6: % m8 | Z6: % m9 | AA6: % m10 | AB6: % m11 | AC6: % m12 | AD6: % y
B7: Hasil 1 | D7: RM186 | E7: RM108 | F7: RM92 | G7: RM122 | H7: RM190 | I7: RM71 | J7: RM21 | K7: RM37 | L7: RM24 | M7: RM178 | N7: RM92 | O7: RM97 | P7: =SUM(D7:O7) -> RM1,218 | Q7: 12% | R7: =IFERROR(tblHasil[[#This Row],[m1]]/tblHasil[[#Totals],[m1]],"-") -> 30% | S7: =IFERROR(tblHasil[[#This Row],[m2]]/tblHasil[[#Totals],[m2]],"-") -> 15% | T7: =IFERROR(tblHasil[[#This Row],[m3]]/tblHasil[[#Totals],[m3]],"-") -> 11% | U7: =IFERROR(tblHasil[[#This Row],[m4]]/tblHasil[[#Totals],[m4]],"-") -> 20% | V7: =IFERROR(tblHasil[[#This Row],[m5]]/tblHasil[[#Totals],[m5]],"-") -> 23% | W7: =IFERROR(tblHasil[[#This Row],[m6]]/tblHasil[[#Totals],[m6]],"-") -> 12% | X7: =IFERROR(tblHasil[[#This Row],[m7]]/tblHasil[[#Totals],[m7]],"-") -> 4% | Y7: =IFERROR(tblHasil[[#This Row],[m8]]/tblHasil[[#Totals],[m8]],"-") -> 5% | Z7: =IFERROR(tblHasil[[#This Row],[m9]]/tblHasil[[#Totals],[m9]],"-") -> 3% | AA7: =IFERROR(tblHasil[[#This Row],[m10]]/tblHasil[[#Totals],[m10]],"-") -> 26% | AB7: =IFERROR(tblHasil[[#This Row],[m11]]/tblHasil[[#Totals],[m11]],"-") -> 12% | AC7: =IFERROR(tblHasil[[#This Row],[m12]]/tblHasil[[#Totals],[m12]],"-") -> 9% | AD7: =IFERROR(tblHasil[[#This Row],[Yearly]]/tblHasil[[#Totals],[Yearly]],"-") -> 14%
B8: Hasil 2 | D8: RM15 | E8: RM16 | F8: RM198 | G8: RM44 | H8: RM25 | I8: RM68 | J8: RM43 | K8: RM119 | L8: RM37 | M8: RM118 | N8: RM29 | O8: RM171 | P8: RM883 | Q8: 18% | R8: =IFERROR(tblHasil[[#This Row],[m1]]/tblHasil[[#Totals],[m1]],"-") -> 2% | S8: =IFERROR(tblHasil[[#This Row],[m2]]/tblHasil[[#Totals],[m2]],"-") -> 2% | T8: =IFERROR(tblHasil[[#This Row],[m3]]/tblHasil[[#Totals],[m3]],"-") -> 24% | U8: =IFERROR(tblHasil[[#This Row],[m4]]/tblHasil[[#Totals],[m4]],"-") -> 7% | V8: =IFERROR(tblHasil[[#This Row],[m5]]/tblHasil[[#Totals],[m5]],"-") -> 3% | W8: =IFERROR(tblHasil[[#This Row],[m6]]/tblHasil[[#Totals],[m6]],"-") -> 12% | X8: =IFERROR(tblHasil[[#This Row],[m7]]/tblHasil[[#Totals],[m7]],"-") -> 7% | Y8: =IFERROR(tblHasil[[#This Row],[m8]]/tblHasil[[#Totals],[m8]],"-") -> 18% | Z8: =IFERROR(tblHasil[[#This Row],[m9]]/tblHasil[[#Totals],[m9]],"-") -> 5% | AA8: =IFERROR(tblHasil[[#This Row],[m10]]/tblHasil[[#Totals],[m10]],"-") -> 17% | AB8: =IFERROR(tblHasil[[#This Row],[m11]]/tblHasil[[#Totals],[m11]],"-") -> 4% | AC8: =IFERROR(tblHasil[[#This Row],[m12]]/tblHasil[[#Totals],[m12]],"-") -> 16% | AD8: =IFERROR(tblHasil[[#This Row],[Yearly]]/tblHasil[[#Totals],[Yearly]],"-") -> 10%
B9: Hasil 3 | D9: RM166 | E9: RM185 | F9: RM89 | G9: RM170 | H9: RM131 | I9: RM70 | J9: RM50 | K9: RM149 | L9: RM179 | M9: RM104 | N9: RM119 | O9: RM187 | P9: RM1,599 | Q9: 19% | R9: =IFERROR(tblHasil[[#This Row],[m1]]/tblHasil[[#Totals],[m1]],"-") -> 27% | S9: =IFERROR(tblHasil[[#This Row],[m2]]/tblHasil[[#Totals],[m2]],"-") -> 25% | T9: =IFERROR(tblHasil[[#This Row],[m3]]/tblHasil[[#Totals],[m3]],"-") -> 11% | U9: =IFERROR(tblHasil[[#This Row],[m4]]/tblHasil[[#Totals],[m4]],"-") -> 28% | V9: =IFERROR(tblHasil[[#This Row],[m5]]/tblHasil[[#Totals],[m5]],"-") -> 16% | W9: =IFERROR(tblHasil[[#This Row],[m6]]/tblHasil[[#Totals],[m6]],"-") -> 12% | X9: =IFERROR(tblHasil[[#This Row],[m7]]/tblHasil[[#Totals],[m7]],"-") -> 8% | Y9: =IFERROR(tblHasil[[#This Row],[m8]]/tblHasil[[#Totals],[m8]],"-") -> 22% | Z9: =IFERROR(tblHasil[[#This Row],[m9]]/tblHasil[[#Totals],[m9]],"-") -> 24% | AA9: =IFERROR(tblHasil[[#This Row],[m10]]/tblHasil[[#Totals],[m10]],"-") -> 15% | AB9: =IFERROR(tblHasil[[#This Row],[m11]]/tblHasil[[#Totals],[m11]],"-") -> 16% | AC9: =IFERROR(tblHasil[[#This Row],[m12]]/tblHasil[[#Totals],[m12]],"-") -> 18% | AD9: =IFERROR(tblHasil[[#This Row],[Yearly]]/tblHasil[[#Totals],[Yearly]],"-") -> 18%
B10: Hasil 4 | D10: RM21 | E10: RM113 | F10: RM83 | G10: RM17 | H10: RM130 | I10: RM26 | J10: RM167 | K10: RM102 | L10: RM82 | M10: RM33 | N10: RM88 | O10: RM193 | P10: RM1,055 | Q10: 11% | R10: =IFERROR(tblHasil[[#This Row],[m1]]/tblHasil[[#Totals],[m1]],"-") -> 3% | S10: =IFERROR(tblHasil[[#This Row],[m2]]/tblHasil[[#Totals],[m2]],"-") -> 15% | T10: =IFERROR(tblHasil[[#This Row],[m3]]/tblHasil[[#Totals],[m3]],"-") -> 10% | U10: =IFERROR(tblHasil[[#This Row],[m4]]/tblHasil[[#Totals],[m4]],"-") -> 3% | V10: =IFERROR(tblHasil[[#This Row],[m5]]/tblHasil[[#Totals],[m5]],"-") -> 16% | W10: =IFERROR(tblHasil[[#This Row],[m6]]/tblHasil[[#Totals],[m6]],"-") -> 4% | X10: =IFERROR(tblHasil[[#This Row],[m7]]/tblHasil[[#Totals],[m7]],"-") -> 28% | Y10: =IFERROR(tblHasil[[#This Row],[m8]]/tblHasil[[#Totals],[m8]],"-") -> 15% | Z10: =IFERROR(tblHasil[[#This Row],[m9]]/tblHasil[[#Totals],[m9]],"-") -> 11% | AA10: =IFERROR(tblHasil[[#This Row],[m10]]/tblHasil[[#Totals],[m10]],"-") -> 5% | AB10: =IFERROR(tblHasil[[#This Row],[m11]]/tblHasil[[#Totals],[m11]],"-") -> 12% | AC10: =IFERROR(tblHasil[[#This Row],[m12]]/tblHasil[[#Totals],[m12]],"-") -> 19% | AD10: =IFERROR(tblHasil[[#This Row],[Yearly]]/tblHasil[[#Totals],[Yearly]],"-") -> 12%
B11: Hasil 5 | D11: RM70 | E11: RM160 | F11: RM125 | G11: RM84 | H11: RM191 | I11: RM97 | J11: RM52 | K11: RM45 | L11: RM173 | M11: RM136 | N11: RM144 | O11: RM167 | P11: =SUM(D11:O11) -> RM1,444 | Q11: 20% | R11: =IFERROR(tblHasil[[#This Row],[m1]]/tblHasil[[#Totals],[m1]],"-") -> 11% | S11: =IFERROR(tblHasil[[#This Row],[m2]]/tblHasil[[#Totals],[m2]],"-") -> 22% | T11: =IFERROR(tblHasil[[#This Row],[m3]]/tblHasil[[#Totals],[m3]],"-") -> 15% | U11: =IFERROR(tblHasil[[#This Row],[m4]]/tblHasil[[#Totals],[m4]],"-") -> 14% | V11: =IFERROR(tblHasil[[#This Row],[m5]]/tblHasil[[#Totals],[m5]],"-") -> 24% | W11: =IFERROR(tblHasil[[#This Row],[m6]]/tblHasil[[#Totals],[m6]],"-") -> 17% | X11: =IFERROR(tblHasil[[#This Row],[m7]]/tblHasil[[#Totals],[m7]],"-") -> 9% | Y11: =IFERROR(tblHasil[[#This Row],[m8]]/tblHasil[[#Totals],[m8]],"-") -> 7% | Z11: =IFERROR(tblHasil[[#This Row],[m9]]/tblHasil[[#Totals],[m9]],"-") -> 23% | AA11: =IFERROR(tblHasil[[#This Row],[m10]]/tblHasil[[#Totals],[m10]],"-") -> 20% | AB11: =IFERROR(tblHasil[[#This Row],[m11]]/tblHasil[[#Totals],[m11]],"-") -> 19% | AC11: =IFERROR(tblHasil[[#This Row],[m12]]/tblHasil[[#Totals],[m12]],"-") -> 16% | AD11: =IFERROR(tblHasil[[#This Row],[Yearly]]/tblHasil[[#Totals],[Yearly]],"-") -> 17%
B12: Hasil 6 | D12: RM61 | E12: RM99 | F12: RM70 | G12: RM162 | H12: RM28 | I12: RM163 | J12: RM101 | K12: RM103 | L12: RM78 | M12: RM33 | N12: RM162 | O12: RM159 | P12: RM1,219 | Q12: 10% | R12: =IFERROR(tblHasil[[#This Row],[m1]]/tblHasil[[#Totals],[m1]],"-") -> 10% | S12: =IFERROR(tblHasil[[#This Row],[m2]]/tblHasil[[#Totals],[m2]],"-") -> 13% | T12: =IFERROR(tblHasil[[#This Row],[m3]]/tblHasil[[#Totals],[m3]],"-") -> 9% | U12: =IFERROR(tblHasil[[#This Row],[m4]]/tblHasil[[#Totals],[m4]],"-") -> 27% | V12: =IFERROR(tblHasil[[#This Row],[m5]]/tblHasil[[#Totals],[m5]],"-") -> 3% | W12: =IFERROR(tblHasil[[#This Row],[m6]]/tblHasil[[#Totals],[m6]],"-") -> 28% | X12: =IFERROR(tblHasil[[#This Row],[m7]]/tblHasil[[#Totals],[m7]],"-") -> 17% | Y12: =IFERROR(tblHasil[[#This Row],[m8]]/tblHasil[[#Totals],[m8]],"-") -> 15% | Z12: =IFERROR(tblHasil[[#This Row],[m9]]/tblHasil[[#Totals],[m9]],"-") -> 10% | AA12: =IFERROR(tblHasil[[#This Row],[m10]]/tblHasil[[#Totals],[m10]],"-") -> 5% | AB12: =IFERROR(tblHasil[[#This Row],[m11]]/tblHasil[[#Totals],[m11]],"-") -> 22% | AC12: =IFERROR(tblHasil[[#This Row],[m12]]/tblHasil[[#Totals],[m12]],"-") -> 15% | AD12: =IFERROR(tblHasil[[#This Row],[Yearly]]/tblHasil[[#Totals],[Yearly]],"-") -> 14%
B13: Hasil 7 | D13: RM105 | E13: RM55 | F13: RM163 | G13: RM12 | H13: RM117 | I13: RM83 | J13: RM163 | K13: RM120 | L13: RM171 | M13: RM79 | N13: RM105 | O13: RM69 | P13: RM1,242 | Q13: 10% | R13: =IFERROR(tblHasil[[#This Row],[m1]]/tblHasil[[#Totals],[m1]],"-") -> 17% | S13: =IFERROR(tblHasil[[#This Row],[m2]]/tblHasil[[#Totals],[m2]],"-") -> 7% | T13: =IFERROR(tblHasil[[#This Row],[m3]]/tblHasil[[#Totals],[m3]],"-") -> 20% | U13: =IFERROR(tblHasil[[#This Row],[m4]]/tblHasil[[#Totals],[m4]],"-") -> 2% | V13: =IFERROR(tblHasil[[#This Row],[m5]]/tblHasil[[#Totals],[m5]],"-") -> 14% | W13: =IFERROR(tblHasil[[#This Row],[m6]]/tblHasil[[#Totals],[m6]],"-") -> 14% | X13: =IFERROR(tblHasil[[#This Row],[m7]]/tblHasil[[#Totals],[m7]],"-") -> 27% | Y13: =IFERROR(tblHasil[[#This Row],[m8]]/tblHasil[[#Totals],[m8]],"-") -> 18% | Z13: =IFERROR(tblHasil[[#This Row],[m9]]/tblHasil[[#Totals],[m9]],"-") -> 23% | AA13: =IFERROR(tblHasil[[#This Row],[m10]]/tblHasil[[#Totals],[m10]],"-") -> 12% | AB13: =IFERROR(tblHasil[[#This Row],[m11]]/tblHasil[[#Totals],[m11]],"-") -> 14% | AC13: =IFERROR(tblHasil[[#This Row],[m12]]/tblHasil[[#Totals],[m12]],"-") -> 7% | AD13: =IFERROR(tblHasil[[#This Row],[Yearly]]/tblHasil[[#Totals],[Yearly]],"-") -> 14%
B14: JUMLAH JUALAN | D14: =SUBTOTAL(109,tblHasil[m1]) -> RM624 | E14: =SUBTOTAL(109,tblHasil[m2]) -> RM736 | F14: =SUBTOTAL(109,tblHasil[m3]) -> RM820 | G14: =SUBTOTAL(109,tblHasil[m4]) -> RM611 | H14: =SUBTOTAL(109,tblHasil[m5]) -> RM812 | I14: =SUBTOTAL(109,tblHasil[m6]) -> RM578 | J14: =SUBTOTAL(109,tblHasil[m7]) -> RM597 | K14: =SUBTOTAL(109,tblHasil[m8]) -> RM675 | L14: =SUBTOTAL(109,tblHasil[m9]) -> RM744 | M14: =SUBTOTAL(109,tblHasil[m10]) -> RM681 | N14: =SUBTOTAL(109,tblHasil[m11]) -> RM739 | O14: =SUBTOTAL(109,tblHasil[m12]) -> RM1,043 | P14: =SUBTOTAL(109,tblHasil[Yearly]) -> RM8,660 | Q14: =SUBTOTAL(109,tblHasil[Ind %]) -> 100% | R14: =SUBTOTAL(109,tblHasil[% m1]) -> 100% | S14: =SUBTOTAL(109,tblHasil[% m2]) -> 100% | T14: =SUBTOTAL(109,tblHasil[% m3]) -> 100% | U14: =SUBTOTAL(109,tblHasil[% m4]) -> 100% | V14: =SUBTOTAL(109,tblHasil[% m5]) -> 100% | W14: =SUBTOTAL(109,tblHasil[% m6]) -> 100% | X14: =SUBTOTAL(109,tblHasil[% m7]) -> 100% | Y14: =SUBTOTAL(109,tblHasil[% m8]) -> 100% | Z14: =SUBTOTAL(109,tblHasil[% m9]) -> 100% | AA14: =SUBTOTAL(109,tblHasil[% m10]) -> 100% | AB14: =SUBTOTAL(109,tblHasil[% m11]) -> 100% | AC14: =SUBTOTAL(109,tblHasil[% m12]) -> 100% | AD14: =SUBTOTAL(109,tblHasil[% y]) -> 100%
B16: KOS JUALAN | C16: ARAH ALIRAN | D16: m1 | E16: m2 | F16: m3 | G16: m4 | H16: m5 | I16: m6 | J16: m7 | K16: m8 | L16: m9 | M16: m10 | N16: m11 | O16: m12 | P16: Yearly | Q16: Ind % | R16: % m1 | S16: % m2 | T16: % m3 | U16: % m4 | V16: % m5 | W16: % m6 | X16: % m7 | Y16: % m8 | Z16: % m9 | AA16: % m10 | AB16: % m11 | AC16: % m12 | AD16: % y
B17: Kos 1 | D17: RM61 | E17: RM78 | F17: RM65 | G17: RM29 | H17: RM125 | I17: RM49 | J17: RM14 | K17: RM26 | L17: RM14 | M17: RM129 | N17: RM60 | O17: RM65 | P17: =SUM(tblKosJualan[[#This Row],[m1]:[m12]]) -> RM715 | Q17: 12% | R17: =IFERROR(tblKosJualan[[#This Row],[m1]]/tblKosJualan[[#Totals],[m1]],"-") -> 23% | S17: =IFERROR(tblKosJualan[[#This Row],[m2]]/tblKosJualan[[#Totals],[m2]],"-") -> 22% | T17: =IFERROR(tblKosJualan[[#This Row],[m3]]/tblKosJualan[[#Totals],[m3]],"-") -> 21% | U17: =IFERROR(tblKosJualan[[#This Row],[m4]]/tblKosJualan[[#Totals],[m4]],"-") -> 12% | V17: =IFERROR(tblKosJualan[[#This Row],[m5]]/tblKosJualan[[#Totals],[m5]],"-") -> 31% | W17: =IFERROR(tblKosJualan[[#This Row],[m6]]/tblKosJualan[[#Totals],[m6]],"-") -> 16% | X17: =IFERROR(tblKosJualan[[#This Row],[m7]]/tblKosJualan[[#Totals],[m7]],"-") -> 5% | Y17: =IFERROR(tblKosJualan[[#This Row],[m8]]/tblKosJualan[[#Totals],[m8]],"-") -> 12% | Z17: =IFERROR(tblKosJualan[[#This Row],[m9]]/tblKosJualan[[#Totals],[m9]],"-") -> 3% | AA17: =IFERROR(tblKosJualan[[#This Row],[m10]]/tblKosJualan[[#Totals],[m10]],"-") -> 47% | AB17: =IFERROR(tblKosJualan[[#This Row],[m11]]/tblKosJualan[[#Totals],[m11]],"-") -> 23% | AC17: =IFERROR(tblKosJualan[[#This Row],[m12]]/tblKosJualan[[#Totals],[m12]],"-") -> 14% | AD17: =IFERROR(tblKosJualan[[#This Row],[Yearly]]/tblKosJualan[[#Totals],[Yearly]],"-") -> 19%
B18: Kos 2 | D18: RM7 | E18: RM5 | F18: RM69 | G18: RM32 | H18: RM11 | I18: RM30 | J18: RM27 | K18: RM32 | L18: RM10 | M18: RM41 | N18: RM13 | O18: RM105 | P18: =SUM(tblKosJualan[[#This Row],[m1]:[m12]]) -> RM382 | Q18: 18% | R18: =IFERROR(tblKosJualan[[#This Row],[m1]]/tblKosJualan[[#Totals],[m1]],"-") -> 3% | S18: =IFERROR(tblKosJualan[[#This Row],[m2]]/tblKosJualan[[#Totals],[m2]],"-") -> 1% | T18: =IFERROR(tblKosJualan[[#This Row],[m3]]/tblKosJualan[[#Totals],[m3]],"-") -> 22% | U18: =IFERROR(tblKosJualan[[#This Row],[m4]]/tblKosJualan[[#Totals],[m4]],"-") -> 13% | V18: =IFERROR(tblKosJualan[[#This Row],[m5]]/tblKosJualan[[#Totals],[m5]],"-") -> 3% | W18: =IFERROR(tblKosJualan[[#This Row],[m6]]/tblKosJualan[[#Totals],[m6]],"-") -> 10% | X18: =IFERROR(tblKosJualan[[#This Row],[m7]]/tblKosJualan[[#Totals],[m7]],"-") -> 9% | Y18: =IFERROR(tblKosJualan[[#This Row],[m8]]/tblKosJualan[[#Totals],[m8]],"-") -> 14% | Z18: =IFERROR(tblKosJualan[[#This Row],[m9]]/tblKosJualan[[#Totals],[m9]],"-") -> 2% | AA18: =IFERROR(tblKosJualan[[#This Row],[m10]]/tblKosJualan[[#Totals],[m10]],"-") -> 15% | AB18: =IFERROR(tblKosJualan[[#This Row],[m11]]/tblKosJualan[[#Totals],[m11]],"-") -> 5% | AC18: =IFERROR(tblKosJualan[[#This Row],[m12]]/tblKosJualan[[#Totals],[m12]],"-") -> 23% | AD18: =IFERROR(tblKosJualan[[#This Row],[Yearly]]/tblKosJualan[[#Totals],[Yearly]],"-") -> 10%
B19: Kos 3 | D19: RM99 | E19: RM95 | F19: RM51 | G19: RM90 | H19: RM21 | I19: RM34 | J19: RM30 | K19: RM24 | L19: RM109 | M19: RM16 | N19: RM21 | O19: RM52 | P19: =SUM(tblKosJualan[[#This Row],[m1]:[m12]]) -> RM642 | Q19: 19% | R19: =IFERROR(tblKosJualan[[#This Row],[m1]]/tblKosJualan[[#Totals],[m1]],"-") -> 37% | S19: =IFERROR(tblKosJualan[[#This Row],[m2]]/tblKosJualan[[#Totals],[m2]],"-") -> 27% | T19: =IFERROR(tblKosJualan[[#This Row],[m3]]/tblKosJualan[[#Totals],[m3]],"-") -> 16% | U19: =IFERROR(tblKosJualan[[#This Row],[m4]]/tblKosJualan[[#Totals],[m4]],"-") -> 37% | V19: =IFERROR(tblKosJualan[[#This Row],[m5]]/tblKosJualan[[#Totals],[m5]],"-") -> 5% | W19: =IFERROR(tblKosJualan[[#This Row],[m6]]/tblKosJualan[[#Totals],[m6]],"-") -> 11% | X19: =IFERROR(tblKosJualan[[#This Row],[m7]]/tblKosJualan[[#Totals],[m7]],"-") -> 10% | Y19: =IFERROR(tblKosJualan[[#This Row],[m8]]/tblKosJualan[[#Totals],[m8]],"-") -> 11% | Z19: =IFERROR(tblKosJualan[[#This Row],[m9]]/tblKosJualan[[#Totals],[m9]],"-") -> 26% | AA19: =IFERROR(tblKosJualan[[#This Row],[m10]]/tblKosJualan[[#Totals],[m10]],"-") -> 6% | AB19: =IFERROR(tblKosJualan[[#This Row],[m11]]/tblKosJualan[[#Totals],[m11]],"-") -> 8% | AC19: =IFERROR(tblKosJualan[[#This Row],[m12]]/tblKosJualan[[#Totals],[m12]],"-") -> 11% | AD19: =IFERROR(tblKosJualan[[#This Row],[Yearly]]/tblKosJualan[[#Totals],[Yearly]],"-") -> 17%
B20: Kos 4 | D20: RM13 | E20: RM28 | F20: RM15 | G20: RM8 | H20: RM84 | I20: RM12 | J20: RM54 | K20: RM72 | L20: RM49 | M20: RM24 | N20: RM60 | O20: RM39 | P20: =SUM(tblKosJualan[[#This Row],[m1]:[m12]]) -> RM458 | Q20: 11% | R20: =IFERROR(tblKosJualan[[#This Row],[m1]]/tblKosJualan[[#Totals],[m1]],"-") -> 5% | S20: =IFERROR(tblKosJualan[[#This Row],[m2]]/tblKosJualan[[#Totals],[m2]],"-") -> 8% | T20: =IFERROR(tblKosJualan[[#This Row],[m3]]/tblKosJualan[[#Totals],[m3]],"-") -> 5% | U20: =IFERROR(tblKosJualan[[#This Row],[m4]]/tblKosJualan[[#Totals],[m4]],"-") -> 3% | V20: =IFERROR(tblKosJualan[[#This Row],[m5]]/tblKosJualan[[#Totals],[m5]],"-") -> 21% | W20: =IFERROR(tblKosJualan[[#This Row],[m6]]/tblKosJualan[[#Totals],[m6]],"-") -> 4% | X20: =IFERROR(tblKosJualan[[#This Row],[m7]]/tblKosJualan[[#Totals],[m7]],"-") -> 18% | Y20: =IFERROR(tblKosJualan[[#This Row],[m8]]/tblKosJualan[[#Totals],[m8]],"-") -> 32% | Z20: =IFERROR(tblKosJualan[[#This Row],[m9]]/tblKosJualan[[#Totals],[m9]],"-") -> 12% | AA20: =IFERROR(tblKosJualan[[#This Row],[m10]]/tblKosJualan[[#Totals],[m10]],"-") -> 9% | AB20: =IFERROR(tblKosJualan[[#This Row],[m11]]/tblKosJualan[[#Totals],[m11]],"-") -> 23% | AC20: =IFERROR(tblKosJualan[[#This Row],[m12]]/tblKosJualan[[#Totals],[m12]],"-") -> 9% | AD20: =IFERROR(tblKosJualan[[#This Row],[Yearly]]/tblKosJualan[[#Totals],[Yearly]],"-") -> 12%
B21: Kos 5 | D21: RM34 | E21: RM78 | F21: RM43 | G21: RM30 | H21: RM77 | I21: RM54 | J21: RM26 | K21: RM13 | L21: RM56 | M21: RM30 | N21: RM40 | O21: RM63 | P21: =SUM(tblKosJualan[[#This Row],[m1]:[m12]]) -> RM544 | Q21: 20% | R21: =IFERROR(tblKosJualan[[#This Row],[m1]]/tblKosJualan[[#Totals],[m1]],"-") -> 13% | S21: =IFERROR(tblKosJualan[[#This Row],[m2]]/tblKosJualan[[#Totals],[m2]],"-") -> 22% | T21: =IFERROR(tblKosJualan[[#This Row],[m3]]/tblKosJualan[[#Totals],[m3]],"-") -> 14% | U21: =IFERROR(tblKosJualan[[#This Row],[m4]]/tblKosJualan[[#Totals],[m4]],"-") -> 12% | V21: =IFERROR(tblKosJualan[[#This Row],[m5]]/tblKosJualan[[#Totals],[m5]],"-") -> 19% | W21: =IFERROR(tblKosJualan[[#This Row],[m6]]/tblKosJualan[[#Totals],[m6]],"-") -> 17% | X21: =IFERROR(tblKosJualan[[#This Row],[m7]]/tblKosJualan[[#Totals],[m7]],"-") -> 9% | Y21: =IFERROR(tblKosJualan[[#This Row],[m8]]/tblKosJualan[[#Totals],[m8]],"-") -> 6% | Z21: =IFERROR(tblKosJualan[[#This Row],[m9]]/tblKosJualan[[#Totals],[m9]],"-") -> 14% | AA21: =IFERROR(tblKosJualan[[#This Row],[m10]]/tblKosJualan[[#Totals],[m10]],"-") -> 11% | AB21: =IFERROR(tblKosJualan[[#This Row],[m11]]/tblKosJualan[[#Totals],[m11]],"-") -> 15% | AC21: =IFERROR(tblKosJualan[[#This Row],[m12]]/tblKosJualan[[#Totals],[m12]],"-") -> 14% | AD21: =IFERROR(tblKosJualan[[#This Row],[Yearly]]/tblKosJualan[[#Totals],[Yearly]],"-") -> 14%
B22: Kos 6 | D22: RM33 | E22: RM61 | F22: RM42 | G22: RM43 | H22: RM19 | I22: RM94 | J22: RM46 | K22: RM15 | L22: RM55 | M22: RM15 | N22: RM37 | O22: RM89 | P22: =SUM(tblKosJualan[[#This Row],[m1]:[m12]]) -> RM549 | Q22: 10% | R22: =IFERROR(tblKosJualan[[#This Row],[m1]]/tblKosJualan[[#Totals],[m1]],"-") -> 12% | S22: =IFERROR(tblKosJualan[[#This Row],[m2]]/tblKosJualan[[#Totals],[m2]],"-") -> 17% | T22: =IFERROR(tblKosJualan[[#This Row],[m3]]/tblKosJualan[[#Totals],[m3]],"-") -> 13% | U22: =IFERROR(tblKosJualan[[#This Row],[m4]]/tblKosJualan[[#Totals],[m4]],"-") -> 18% | V22: =IFERROR(tblKosJualan[[#This Row],[m5]]/tblKosJualan[[#Totals],[m5]],"-") -> 5% | W22: =IFERROR(tblKosJualan[[#This Row],[m6]]/tblKosJualan[[#Totals],[m6]],"-") -> 30% | X22: =IFERROR(tblKosJualan[[#This Row],[m7]]/tblKosJualan[[#Totals],[m7]],"-") -> 15% | Y22: =IFERROR(tblKosJualan[[#This Row],[m8]]/tblKosJualan[[#Totals],[m8]],"-") -> 7% | Z22: =IFERROR(tblKosJualan[[#This Row],[m9]]/tblKosJualan[[#Totals],[m9]],"-") -> 13% | AA22: =IFERROR(tblKosJualan[[#This Row],[m10]]/tblKosJualan[[#Totals],[m10]],"-") -> 5% | AB22: =IFERROR(tblKosJualan[[#This Row],[m11]]/tblKosJualan[[#Totals],[m11]],"-") -> 14% | AC22: =IFERROR(tblKosJualan[[#This Row],[m12]]/tblKosJualan[[#Totals],[m12]],"-") -> 20% | AD22: =IFERROR(tblKosJualan[[#This Row],[Yearly]]/tblKosJualan[[#Totals],[Yearly]],"-") -> 14%
B23: Kos 7 | D23: RM18 | E23: RM11 | F23: RM30 | G23: RM9 | H23: RM62 | I23: RM39 | J23: RM102 | K23: RM44 | L23: RM121 | M23: RM19 | N23: RM33 | O23: RM40 | P23: =SUM(tblKosJualan[[#This Row],[m1]:[m12]]) -> RM528 | Q23: 10% | R23: =IFERROR(tblKosJualan[[#This Row],[m1]]/tblKosJualan[[#Totals],[m1]],"-") -> 7% | S23: =IFERROR(tblKosJualan[[#This Row],[m2]]/tblKosJualan[[#Totals],[m2]],"-") -> 3% | T23: =IFERROR(tblKosJualan[[#This Row],[m3]]/tblKosJualan[[#Totals],[m3]],"-") -> 10% | U23: =IFERROR(tblKosJualan[[#This Row],[m4]]/tblKosJualan[[#Totals],[m4]],"-") -> 4% | V23: =IFERROR(tblKosJualan[[#This Row],[m5]]/tblKosJualan[[#Totals],[m5]],"-") -> 16% | W23: =IFERROR(tblKosJualan[[#This Row],[m6]]/tblKosJualan[[#Totals],[m6]],"-") -> 13% | X23: =IFERROR(tblKosJualan[[#This Row],[m7]]/tblKosJualan[[#Totals],[m7]],"-") -> 34% | Y23: =IFERROR(tblKosJualan[[#This Row],[m8]]/tblKosJualan[[#Totals],[m8]],"-") -> 19% | Z23: =IFERROR(tblKosJualan[[#This Row],[m9]]/tblKosJualan[[#Totals],[m9]],"-") -> 29% | AA23: =IFERROR(tblKosJualan[[#This Row],[m10]]/tblKosJualan[[#Totals],[m10]],"-") -> 7% | AB23: =IFERROR(tblKosJualan[[#This Row],[m11]]/tblKosJualan[[#Totals],[m11]],"-") -> 13% | AC23: =IFERROR(tblKosJualan[[#This Row],[m12]]/tblKosJualan[[#Totals],[m12]],"-") -> 9% | AD23: =IFERROR(tblKosJualan[[#This Row],[Yearly]]/tblKosJualan[[#Totals],[Yearly]],"-") -> 14%
B24: JUMLAH KOS JUALAN | D24: =SUBTOTAL(109,tblKosJualan[m1]) -> RM265 | E24: =SUBTOTAL(109,tblKosJualan[m2]) -> RM356 | F24: =SUBTOTAL(109,tblKosJualan[m3]) -> RM315 | G24: =SUBTOTAL(109,tblKosJualan[m4]) -> RM241 | H24: =SUBTOTAL(109,tblKosJualan[m5]) -> RM399 | I24: =SUBTOTAL(109,tblKosJualan[m6]) -> RM312 | J24: =SUBTOTAL(109,tblKosJualan[m7]) -> RM299 | K24: =SUBTOTAL(109,tblKosJualan[m8]) -> RM226 | L24: =SUBTOTAL(109,tblKosJualan[m9]) -> RM414 | M24: =SUBTOTAL(109,tblKosJualan[m10]) -> RM274 | N24: =SUBTOTAL(109,tblKosJualan[m11]) -> RM264 | O24: =SUBTOTAL(109,tblKosJualan[m12]) -> RM453 | P24: =SUBTOTAL(109,tblKosJualan[Yearly]) -> RM3,818 | Q24: =SUBTOTAL(109,tblKosJualan[Ind %]) -> 100% | R24: =SUBTOTAL(109,tblKosJualan[% m1]) -> 100% | S24: =SUBTOTAL(109,tblKosJualan[% m2]) -> 100% | T24: =SUBTOTAL(109,tblKosJualan[% m3]) -> 100% | U24: =SUBTOTAL(109,tblKosJualan[% m4]) -> 100% | V24: =SUBTOTAL(109,tblKosJualan[% m5]) -> 100% | W24: =SUBTOTAL(109,tblKosJualan[% m6]) -> 100% | X24: =SUBTOTAL(109,tblKosJualan[% m7]) -> 100% | Y24: =SUBTOTAL(109,tblKosJualan[% m8]) -> 100% | Z24: =SUBTOTAL(109,tblKosJualan[% m9]) -> 100% | AA24: =SUBTOTAL(109,tblKosJualan[% m10]) -> 100% | AB24: =SUBTOTAL(109,tblKosJualan[% m11]) -> 100% | AC24: =SUBTOTAL(109,tblKosJualan[% m12]) -> 100% | AD24: =SUBTOTAL(109,tblKosJualan[% y]) -> 100%
B26: Untung Kasar | D26: =tblHasil[[#Totals],[m1]]-tblKosJualan[[#Totals],[m1]] -> RM359 | E26: =tblHasil[[#Totals],[m2]]-tblKosJualan[[#Totals],[m2]] -> RM380 | F26: =tblHasil[[#Totals],[m3]]-tblKosJualan[[#Totals],[m3]] -> RM505 | G26: =tblHasil[[#Totals],[m4]]-tblKosJualan[[#Totals],[m4]] -> RM370 | H26: =tblHasil[[#Totals],[m5]]-tblKosJualan[[#Totals],[m5]] -> RM413 | I26: =tblHasil[[#Totals],[m6]]-tblKosJualan[[#Totals],[m6]] -> RM266 | J26: =tblHasil[[#Totals],[m7]]-tblKosJualan[[#Totals],[m7]] -> RM298 | K26: =tblHasil[[#Totals],[m8]]-tblKosJualan[[#Totals],[m8]] -> RM449 | L26: =tblHasil[[#Totals],[m9]]-tblKosJualan[[#Totals],[m9]] -> RM330 | M26: =tblHasil[[#Totals],[m10]]-tblKosJualan[[#Totals],[m10]] -> RM407 | N26: =tblHasil[[#Totals],[m11]]-tblKosJualan[[#Totals],[m11]] -> RM475 | O26: =tblHasil[[#Totals],[m12]]-tblKosJualan[[#Totals],[m12]] -> RM590 | P26: =tblHasil[[#Totals],[Yearly]]-tblKosJualan[[#Totals],[Yearly]] -> RM4,842 | R26: =D26/$P$26 -> 7% | S26: =E26/$P$26 -> 8% | T26: 10% | U26: 8% | V26: 9% | W26: 5% | X26: 6% | Y26: 9% | Z26: 7% | AA26: 8% | AB26: 10% | AC26: 12% | AD26: 100%
B28: PERBELANJAAN | C28: ARAH ALIRAN | D28: m1 | E28: m2 | F28: m3 | G28: m4 | H28: m5 | I28: m6 | J28: m7 | K28: m8 | L28: m9 | M28: m10 | N28: m11 | O28: m12 | P28: Yearly | Q28: Ind % | R28: % m1 | S28: % m2 | T28: % m3 | U28: % m4 | V28: % m5 | W28: % m6 | X28: % m7 | Y28: % m8 | Z28: % m9 | AA28: % m10 | AB28: % m11 | AC28: % m12 | AD28: % y
B29: Perbelanjaan gaji | D29: RM10 | E29: RM18 | F29: RM13 | G29: RM8 | H29: RM22 | I29: RM18 | J29: RM8 | K29: RM17 | L29: RM20 | M29: RM8 | N29: RM4 | O29: RM12 | P29: =SUM(tblPerbelanjaan[[#This Row],[m1]:[m12]]) -> RM158 | Q29: 12% | R29: =tblPerbelanjaan[[#This Row],[m1]]/tblPerbelanjaan[[#Totals],[m1]] -> 4% | S29: =tblPerbelanjaan[[#This Row],[m2]]/tblPerbelanjaan[[#Totals],[m2]] -> 9% | T29: =tblPerbelanjaan[[#This Row],[m3]]/tblPerbelanjaan[[#Totals],[m3]] -> 5% | U29: =tblPerbelanjaan[[#This Row],[m4]]/tblPerbelanjaan[[#Totals],[m4]] -> 3% | V29: =tblPerbelanjaan[[#This Row],[m5]]/tblPerbelanjaan[[#Totals],[m5]] -> 9% | W29: =tblPerbelanjaan[[#This Row],[m6]]/tblPerbelanjaan[[#Totals],[m6]] -> 7% | X29: =tblPerbelanjaan[[#This Row],[m7]]/tblPerbelanjaan[[#Totals],[m7]] -> 3% | Y29: =tblPerbelanjaan[[#This Row],[m8]]/tblPerbelanjaan[[#Totals],[m8]] -> 7% | Z29: =tblPerbelanjaan[[#This Row],[m9]]/tblPerbelanjaan[[#Totals],[m9]] -> 9% | AA29: =tblPerbelanjaan[[#This Row],[m10]]/tblPerbelanjaan[[#Totals],[m10]] -> 3% | AB29: =tblPerbelanjaan[[#This Row],[m11]]/tblPerbelanjaan[[#Totals],[m11]] -> 1% | AC29: =tblPerbelanjaan[[#This Row],[m12]]/tblPerbelanjaan[[#Totals],[m12]] -> 5% | AD29: =tblPerbelanjaan[[#This Row],[Yearly]]/tblPerbelanjaan[[#Totals],[Yearly]] -> 5%
B30: Perbelanjaan senarai gaji | D30: RM23 | E30: RM11 | F30: RM7 | G30: RM14 | H30: RM12 | I30: RM19 | J30: RM19 | K30: RM4 | L30: RM7 | M30: RM13 | N30: RM25 | O30: RM5 | P30: =SUM(tblPerbelanjaan[[#This Row],[m1]:[m12]]) -> RM159 | Q30: 9% | R30: =tblPerbelanjaan[[#This Row],[m1]]/tblPerbelanjaan[[#Totals],[m1]] -> 10% | S30: =tblPerbelanjaan[[#This Row],[m2]]/tblPerbelanjaan[[#Totals],[m2]] -> 5% | T30: =tblPerbelanjaan[[#This Row],[m3]]/tblPerbelanjaan[[#Totals],[m3]] -> 3% | U30: =tblPerbelanjaan[[#This Row],[m4]]/tblPerbelanjaan[[#Totals],[m4]] -> 5% | V30: =tblPerbelanjaan[[#This Row],[m5]]/tblPerbelanjaan[[#Totals],[m5]] -> 5% | W30: =tblPerbelanjaan[[#This Row],[m6]]/tblPerbelanjaan[[#Totals],[m6]] -> 7% | X30: =tblPerbelanjaan[[#This Row],[m7]]/tblPerbelanjaan[[#Totals],[m7]] -> 7% | Y30: =tblPerbelanjaan[[#This Row],[m8]]/tblPerbelanjaan[[#Totals],[m8]] -> 2% | Z30: =tblPerbelanjaan[[#This Row],[m9]]/tblPerbelanjaan[[#Totals],[m9]] -> 3% | AA30: =tblPerbelanjaan[[#This Row],[m10]]/tblPerbelanjaan[[#Totals],[m10]] -> 5% | AB30: =tblPerbelanjaan[[#This Row],[m11]]/tblPerbelanjaan[[#Totals],[m11]] -> 8% | AC30: =tblPerbelanjaan[[#This Row],[m12]]/tblPerbelanjaan[[#Totals],[m12]] -> 2% | AD30: =tblPerbelanjaan[[#This Row],[Yearly]]/tblPerbelanjaan[[#Totals],[Yearly]] -> 5%
B31: Khidmat luar | D31: RM23 | E31: RM20 | F31: RM3 | G31: RM16 | H31: RM10 | I31: RM5 | J31: RM20 | K31: RM7 | L31: RM4 | M31: RM22 | N31: RM13 | O31: RM14 | P31: =SUM(tblPerbelanjaan[[#This Row],[m1]:[m12]]) -> RM157 | Q31: 2% | R31: =tblPerbelanjaan[[#This Row],[m1]]/tblPerbelanjaan[[#Totals],[m1]] -> 10% | S31: =tblPerbelanjaan[[#This Row],[m2]]/tblPerbelanjaan[[#Totals],[m2]] -> 10% | T31: =tblPerbelanjaan[[#This Row],[m3]]/tblPerbelanjaan[[#Totals],[m3]] -> 1% | U31: =tblPerbelanjaan[[#This Row],[m4]]/tblPerbelanjaan[[#Totals],[m4]] -> 6% | V31: =tblPerbelanjaan[[#This Row],[m5]]/tblPerbelanjaan[[#Totals],[m5]] -> 4% | W31: =tblPerbelanjaan[[#This Row],[m6]]/tblPerbelanjaan[[#Totals],[m6]] -> 2% | X31: =tblPerbelanjaan[[#This Row],[m7]]/tblPerbelanjaan[[#Totals],[m7]] -> 8% | Y31: =tblPerbelanjaan[[#This Row],[m8]]/tblPerbelanjaan[[#Totals],[m8]] -> 3% | Z31: =tblPerbelanjaan[[#This Row],[m9]]/tblPerbelanjaan[[#Totals],[m9]] -> 2% | AA31: =tblPerbelanjaan[[#This Row],[m10]]/tblPerbelanjaan[[#Totals],[m10]] -> 8% | AB31: =tblPerbelanjaan[[#This Row],[m11]]/tblPerbelanjaan[[#Totals],[m11]] -> 4% | AC31: =tblPerbelanjaan[[#This Row],[m12]]/tblPerbelanjaan[[#Totals],[m12]] -> 6% | AD31: =tblPerbelanjaan[[#This Row],[Yearly]]/tblPerbelanjaan[[#Totals],[Yearly]] -> 5%
B32: Bekalan (pejabat dan pengendalian) | D32: RM19 | E32: RM4 | F32: RM7 | G32: RM14 | H32: RM22 | I32: RM10 | J32: RM22 | K32: RM5 | L32: RM4 | M32: RM12 | N32: RM18 | O32: RM24 | P32: =SUM(tblPerbelanjaan[[#This Row],[m1]:[m12]]) -> RM161 | Q32: 8% | R32: =tblPerbelanjaan[[#This Row],[m1]]/tblPerbelanjaan[[#Totals],[m1]] -> 8% | S32: =tblPerbelanjaan[[#This Row],[m2]]/tblPerbelanjaan[[#Totals],[m2]] -> 2% | T32: =tblPerbelanjaan[[#This Row],[m3]]/tblPerbelanjaan[[#Totals],[m3]] -> 3% | U32: =tblPerbelanjaan[[#This Row],[m4]]/tblPerbelanjaan[[#Totals],[m4]] -> 5% | V32: =tblPerbelanjaan[[#This Row],[m5]]/tblPerbelanjaan[[#Totals],[m5]] -> 9% | W32: =tblPerbelanjaan[[#This Row],[m6]]/tblPerbelanjaan[[#Totals],[m6]] -> 4% | X32: =tblPerbelanjaan[[#This Row],[m7]]/tblPerbelanjaan[[#Totals],[m7]] -> 8% | Y32: =tblPerbelanjaan[[#This Row],[m8]]/tblPerbelanjaan[[#Totals],[m8]] -> 2% | Z32: =tblPerbelanjaan[[#This Row],[m9]]/tblPerbelanjaan[[#Totals],[m9]] -> 2% | AA32: =tblPerbelanjaan[[#This Row],[m10]]/tblPerbelanjaan[[#Totals],[m10]] -> 5% | AB32: =tblPerbelanjaan[[#This Row],[m11]]/tblPerbelanjaan[[#Totals],[m11]] -> 6% | AC32: =tblPerbelanjaan[[#This Row],[m12]]/tblPerbelanjaan[[#Totals],[m12]] -> 10% | AD32: =tblPerbelanjaan[[#This Row],[Yearly]]/tblPerbelanjaan[[#Totals],[Yearly]] -> 5%
B33: Pembaikan dan penyenggaraan | D33: RM11 | E33: RM11 | F33: RM17 | G33: RM12 | H33: RM2 | I33: RM14 | J33: RM12 | K33: RM10 | L33: RM18 | M33: RM11 | N33: RM23 | O33: RM11 | P33: =SUM(tblPerbelanjaan[[#This Row],[m1]:[m12]]) -> RM152 | Q33: 3% | R33: =tblPerbelanjaan[[#This Row],[m1]]/tblPerbelanjaan[[#Totals],[m1]] -> 5% | S33: =tblPerbelanjaan[[#This Row],[m2]]/tblPerbelanjaan[[#Totals],[m2]] -> 5% | T33: =tblPerbelanjaan[[#This Row],[m3]]/tblPerbelanjaan[[#Totals],[m3]] -> 7% | U33: =tblPerbelanjaan[[#This Row],[m4]]/tblPerbelanjaan[[#Totals],[m4]] -> 5% | V33: =tblPerbelanjaan[[#This Row],[m5]]/tblPerbelanjaan[[#Totals],[m5]] -> 1% | W33: =tblPerbelanjaan[[#This Row],[m6]]/tblPerbelanjaan[[#Totals],[m6]] -> 5% | X33: =tblPerbelanjaan[[#This Row],[m7]]/tblPerbelanjaan[[#Totals],[m7]] -> 5% | Y33: =tblPerbelanjaan[[#This Row],[m8]]/tblPerbelanjaan[[#Totals],[m8]] -> 4% | Z33: =tblPerbelanjaan[[#This Row],[m9]]/tblPerbelanjaan[[#Totals],[m9]] -> 8% | AA33: =tblPerbelanjaan[[#This Row],[m10]]/tblPerbelanjaan[[#Totals],[m10]] -> 4% | AB33: =tblPerbelanjaan[[#This Row],[m11]]/tblPerbelanjaan[[#Totals],[m11]] -> 8% | AC33: =tblPerbelanjaan[[#This Row],[m12]]/tblPerbelanjaan[[#Totals],[m12]] -> 5% | AD33: =tblPerbelanjaan[[#This Row],[Yearly]]/tblPerbelanjaan[[#Totals],[Yearly]] -> 5%
B34: Pengiklanan | D34: RM2 | E34: RM16 | F34: RM6 | G34: RM13 | H34: RM11 | I34: RM22 | J34: RM21 | K34: RM3 | L34: RM12 | M34: RM7 | N34: RM17 | O34: RM20 | P34: =SUM(tblPerbelanjaan[[#This Row],[m1]:[m12]]) -> RM150 | Q34: 15% | R34: =tblPerbelanjaan[[#This Row],[m1]]/tblPerbelanjaan[[#Totals],[m1]] -> 1% | S34: =tblPerbelanjaan[[#This Row],[m2]]/tblPerbelanjaan[[#Totals],[m2]] -> 8% | T34: =tblPerbelanjaan[[#This Row],[m3]]/tblPerbelanjaan[[#Totals],[m3]] -> 2% | U34: =tblPerbelanjaan[[#This Row],[m4]]/tblPerbelanjaan[[#Totals],[m4]] -> 5% | V34: =tblPerbelanjaan[[#This Row],[m5]]/tblPerbelanjaan[[#Totals],[m5]] -> 4% | W34: =tblPerbelanjaan[[#This Row],[m6]]/tblPerbelanjaan[[#Totals],[m6]] -> 8% | X34: =tblPerbelanjaan[[#This Row],[m7]]/tblPerbelanjaan[[#Totals],[m7]] -> 8% | Y34: =tblPerbelanjaan[[#This Row],[m8]]/tblPerbelanjaan[[#Totals],[m8]] -> 1% | Z34: =tblPerbelanjaan[[#This Row],[m9]]/tblPerbelanjaan[[#Totals],[m9]] -> 5% | AA34: =tblPerbelanjaan[[#This Row],[m10]]/tblPerbelanjaan[[#Totals],[m10]] -> 3% | AB34: =tblPerbelanjaan[[#This Row],[m11]]/tblPerbelanjaan[[#Totals],[m11]] -> 6% | AC34: =tblPerbelanjaan[[#This Row],[m12]]/tblPerbelanjaan[[#Totals],[m12]] -> 9% | AD34: =tblPerbelanjaan[[#This Row],[Yearly]]/tblPerbelanjaan[[#Totals],[Yearly]] -> 5%
B35: Kereta, penghantaran dan perjalanan | D35: RM8 | E35: RM17 | F35: RM11 | G35: RM11 | H35: RM21 | I35: RM9 | J35: RM20 | K35: RM3 | L35: RM14 | M35: RM22 | N35: RM16 | O35: RM12 | P35: =SUM(tblPerbelanjaan[[#This Row],[m1]:[m12]]) -> RM164 | Q35: 12% | R35: =tblPerbelanjaan[[#This Row],[m1]]/tblPerbelanjaan[[#Totals],[m1]] -> 3% | S35: =tblPerbelanjaan[[#This Row],[m2]]/tblPerbelanjaan[[#Totals],[m2]] -> 8% | T35: =tblPerbelanjaan[[#This Row],[m3]]/tblPerbelanjaan[[#Totals],[m3]] -> 4% | U35: =tblPerbelanjaan[[#This Row],[m4]]/tblPerbelanjaan[[#Totals],[m4]] -> 4% | V35: =tblPerbelanjaan[[#This Row],[m5]]/tblPerbelanjaan[[#Totals],[m5]] -> 8% | W35: =tblPerbelanjaan[[#This Row],[m6]]/tblPerbelanjaan[[#Totals],[m6]] -> 3% | X35: =tblPerbelanjaan[[#This Row],[m7]]/tblPerbelanjaan[[#Totals],[m7]] -> 8% | Y35: =tblPerbelanjaan[[#This Row],[m8]]/tblPerbelanjaan[[#Totals],[m8]] -> 1% | Z35: =tblPerbelanjaan[[#This Row],[m9]]/tblPerbelanjaan[[#Totals],[m9]] -> 6% | AA35: =tblPerbelanjaan[[#This Row],[m10]]/tblPerbelanjaan[[#Totals],[m10]] -> 8% | AB35: =tblPerbelanjaan[[#This Row],[m11]]/tblPerbelanjaan[[#Totals],[m11]] -> 5% | AC35: =tblPerbelanjaan[[#This Row],[m12]]/tblPerbelanjaan[[#Totals],[m12]] -> 5% | AD35: =tblPerbelanjaan[[#This Row],[Yearly]]/tblPerbelanjaan[[#Totals],[Yearly]] -> 5%
B36: Perakaunan dan legal | D36: RM5 | E36: RM13 | F36: RM6 | G36: RM15 | H36: RM19 | I36: RM10 | J36: RM12 | K36: RM9 | L36: RM15 | M36: RM16 | N36: RM4 | O36: RM9 | P36: =SUM(tblPerbelanjaan[[#This Row],[m1]:[m12]]) -> RM133 | Q36: 9% | R36: =tblPerbelanjaan[[#This Row],[m1]]/tblPerbelanjaan[[#Totals],[m1]] -> 2% | S36: =tblPerbelanjaan[[#This Row],[m2]]/tblPerbelanjaan[[#Totals],[m2]] -> 6% | T36: =tblPerbelanjaan[[#This Row],[m3]]/tblPerbelanjaan[[#Totals],[m3]] -> 2% | U36: =tblPerbelanjaan[[#This Row],[m4]]/tblPerbelanjaan[[#Totals],[m4]] -> 6% | V36: =tblPerbelanjaan[[#This Row],[m5]]/tblPerbelanjaan[[#Totals],[m5]] -> 7% | W36: =tblPerbelanjaan[[#This Row],[m6]]/tblPerbelanjaan[[#Totals],[m6]] -> 4% | X36: =tblPerbelanjaan[[#This Row],[m7]]/tblPerbelanjaan[[#Totals],[m7]] -> 5% | Y36: =tblPerbelanjaan[[#This Row],[m8]]/tblPerbelanjaan[[#Totals],[m8]] -> 4% | Z36: =tblPerbelanjaan[[#This Row],[m9]]/tblPerbelanjaan[[#Totals],[m9]] -> 7% | AA36: =tblPerbelanjaan[[#This Row],[m10]]/tblPerbelanjaan[[#Totals],[m10]] -> 6% | AB36: =tblPerbelanjaan[[#This Row],[m11]]/tblPerbelanjaan[[#Totals],[m11]] -> 1% | AC36: =tblPerbelanjaan[[#This Row],[m12]]/tblPerbelanjaan[[#Totals],[m12]] -> 4% | AD36: =tblPerbelanjaan[[#This Row],[Yearly]]/tblPerbelanjaan[[#Totals],[Yearly]] -> 4%
B37: Sewa | D37: RM8 | E37: RM4 | F37: RM23 | G37: RM25 | H37: RM10 | I37: RM24 | J37: RM22 | K37: RM5 | L37: RM12 | M37: RM24 | N37: RM24 | O37: RM12 | P37: =SUM(tblPerbelanjaan[[#This Row],[m1]:[m12]]) -> RM193 | Q37: 1% | R37: =tblPerbelanjaan[[#This Row],[m1]]/tblPerbelanjaan[[#Totals],[m1]] -> 3% | S37: =tblPerbelanjaan[[#This Row],[m2]]/tblPerbelanjaan[[#Totals],[m2]] -> 2% | T37: =tblPerbelanjaan[[#This Row],[m3]]/tblPerbelanjaan[[#Totals],[m3]] -> 9% | U37: =tblPerbelanjaan[[#This Row],[m4]]/tblPerbelanjaan[[#Totals],[m4]] -> 10% | V37: =tblPerbelanjaan[[#This Row],[m5]]/tblPerbelanjaan[[#Totals],[m5]] -> 4% | W37: =tblPerbelanjaan[[#This Row],[m6]]/tblPerbelanjaan[[#Totals],[m6]] -> 9% | X37: =tblPerbelanjaan[[#This Row],[m7]]/tblPerbelanjaan[[#Totals],[m7]] -> 8% | Y37: =tblPerbelanjaan[[#This Row],[m8]]/tblPerbelanjaan[[#Totals],[m8]] -> 2% | Z37: =tblPerbelanjaan[[#This Row],[m9]]/tblPerbelanjaan[[#Totals],[m9]] -> 5% | AA37: =tblPerbelanjaan[[#This Row],[m10]]/tblPerbelanjaan[[#Totals],[m10]] -> 9% | AB37: =tblPerbelanjaan[[#This Row],[m11]]/tblPerbelanjaan[[#Totals],[m11]] -> 8% | AC37: =tblPerbelanjaan[[#This Row],[m12]]/tblPerbelanjaan[[#Totals],[m12]] -> 5% | AD37: =tblPerbelanjaan[[#This Row],[Yearly]]/tblPerbelanjaan[[#Totals],[Yearly]] -> 6%
B38: Telefon | D38: RM25 | E38: RM2 | F38: RM12 | G38: RM25 | H38: RM10 | I38: RM24 | J38: RM3 | K38: RM20 | L38: RM3 | M38: RM9 | N38: RM20 | O38: RM18 | P38: =SUM(tblPerbelanjaan[[#This Row],[m1]:[m12]]) -> RM171 | Q38: 1% | R38: =tblPerbelanjaan[[#This Row],[m1]]/tblPerbelanjaan[[#Totals],[m1]] -> 11% | S38: =tblPerbelanjaan[[#This Row],[m2]]/tblPerbelanjaan[[#Totals],[m2]] -> 1% | T38: =tblPerbelanjaan[[#This Row],[m3]]/tblPerbelanjaan[[#Totals],[m3]] -> 5% | U38: =tblPerbelanjaan[[#This Row],[m4]]/tblPerbelanjaan[[#Totals],[m4]] -> 10% | V38: =tblPerbelanjaan[[#This Row],[m5]]/tblPerbelanjaan[[#Totals],[m5]] -> 4% | W38: =tblPerbelanjaan[[#This Row],[m6]]/tblPerbelanjaan[[#Totals],[m6]] -> 9% | X38: =tblPerbelanjaan[[#This Row],[m7]]/tblPerbelanjaan[[#Totals],[m7]] -> 1% | Y38: =tblPerbelanjaan[[#This Row],[m8]]/tblPerbelanjaan[[#Totals],[m8]] -> 9% | Z38: =tblPerbelanjaan[[#This Row],[m9]]/tblPerbelanjaan[[#Totals],[m9]] -> 1% | AA38: =tblPerbelanjaan[[#This Row],[m10]]/tblPerbelanjaan[[#Totals],[m10]] -> 3% | AB38: =tblPerbelanjaan[[#This Row],[m11]]/tblPerbelanjaan[[#Totals],[m11]] -> 7% | AC38: =tblPerbelanjaan[[#This Row],[m12]]/tblPerbelanjaan[[#Totals],[m12]] -> 8% | AD38: =tblPerbelanjaan[[#This Row],[Yearly]]/tblPerbelanjaan[[#Totals],[Yearly]] -> 6%
B39: Kemudahan | D39: RM16 | E39: RM19 | F39: RM9 | G39: RM16 | H39: RM13 | I39: RM2 | J39: RM4 | K39: RM24 | L39: RM16 | M39: RM22 | N39: RM7 | O39: RM18 | P39: =SUM(tblPerbelanjaan[[#This Row],[m1]:[m12]]) -> RM166 | Q39: 1% | R39: =tblPerbelanjaan[[#This Row],[m1]]/tblPerbelanjaan[[#Totals],[m1]] -> 7% | S39: =tblPerbelanjaan[[#This Row],[m2]]/tblPerbelanjaan[[#Totals],[m2]] -> 9% | T39: =tblPerbelanjaan[[#This Row],[m3]]/tblPerbelanjaan[[#Totals],[m3]] -> 4% | U39: =tblPerbelanjaan[[#This Row],[m4]]/tblPerbelanjaan[[#Totals],[m4]] -> 6% | V39: =tblPerbelanjaan[[#This Row],[m5]]/tblPerbelanjaan[[#Totals],[m5]] -> 5% | W39: =tblPerbelanjaan[[#This Row],[m6]]/tblPerbelanjaan[[#Totals],[m6]] -> 1% | X39: =tblPerbelanjaan[[#This Row],[m7]]/tblPerbelanjaan[[#Totals],[m7]] -> 2% | Y39: =tblPerbelanjaan[[#This Row],[m8]]/tblPerbelanjaan[[#Totals],[m8]] -> 10% | Z39: =tblPerbelanjaan[[#This Row],[m9]]/tblPerbelanjaan[[#Totals],[m9]] -> 7% | AA39: =tblPerbelanjaan[[#This Row],[m10]]/tblPerbelanjaan[[#Totals],[m10]] -> 8% | AB39: =tblPerbelanjaan[[#This Row],[m11]]/tblPerbelanjaan[[#Totals],[m11]] -> 2% | AC39: =tblPerbelanjaan[[#This Row],[m12]]/tblPerbelanjaan[[#Totals],[m12]] -> 8% | AD39: =tblPerbelanjaan[[#This Row],[Yearly]]/tblPerbelanjaan[[#Totals],[Yearly]] -> 6%
B40: Insurans | D40: RM12 | E40: RM9 | F40: RM16 | G40: RM19 | H40: RM25 | I40: RM17 | J40: RM20 | K40: RM14 | L40: RM5 | M40: RM14 | N40: RM5 | O40: RM2 | P40: =SUM(tblPerbelanjaan[[#This Row],[m1]:[m12]]) -> RM158 | Q40: 1% | R40: =tblPerbelanjaan[[#This Row],[m1]]/tblPerbelanjaan[[#Totals],[m1]] -> 5% | S40: =tblPerbelanjaan[[#This Row],[m2]]/tblPerbelanjaan[[#Totals],[m2]] -> 4% | T40: =tblPerbelanjaan[[#This Row],[m3]]/tblPerbelanjaan[[#Totals],[m3]] -> 6% | U40: =tblPerbelanjaan[[#This Row],[m4]]/tblPerbelanjaan[[#Totals],[m4]] -> 7% | V40: =tblPerbelanjaan[[#This Row],[m5]]/tblPerbelanjaan[[#Totals],[m5]] -> 10% | W40: =tblPerbelanjaan[[#This Row],[m6]]/tblPerbelanjaan[[#Totals],[m6]] -> 6% | X40: =tblPerbelanjaan[[#This Row],[m7]]/tblPerbelanjaan[[#Totals],[m7]] -> 8% | Y40: =tblPerbelanjaan[[#This Row],[m8]]/tblPerbelanjaan[[#Totals],[m8]] -> 6% | Z40: =tblPerbelanjaan[[#This Row],[m9]]/tblPerbelanjaan[[#Totals],[m9]] -> 2% | AA40: =tblPerbelanjaan[[#This Row],[m10]]/tblPerbelanjaan[[#Totals],[m10]] -> 5% | AB40: =tblPerbelanjaan[[#This Row],[m11]]/tblPerbelanjaan[[#Totals],[m11]] -> 2% | AC40: =tblPerbelanjaan[[#This Row],[m12]]/tblPerbelanjaan[[#Totals],[m12]] -> 1% | AD40: =tblPerbelanjaan[[#This Row],[Yearly]]/tblPerbelanjaan[[#Totals],[Yearly]] -> 5%
B41: Cukai (harta tanah, dsb.) | D41: RM16 | E41: RM13 | F41: RM10 | G41: RM7 | H41: RM13 | I41: RM3 | J41: RM13 | K41: RM17 | L41: RM9 | M41: RM4 | N41: RM22 | O41: RM18 | P41: =SUM(tblPerbelanjaan[[#This Row],[m1]:[m12]]) -> RM145 | Q41: 14% | R41: =tblPerbelanjaan[[#This Row],[m1]]/tblPerbelanjaan[[#Totals],[m1]] -> 7% | S41: =tblPerbelanjaan[[#This Row],[m2]]/tblPerbelanjaan[[#Totals],[m2]] -> 6% | T41: =tblPerbelanjaan[[#This Row],[m3]]/tblPerbelanjaan[[#Totals],[m3]] -> 4% | U41: =tblPerbelanjaan[[#This Row],[m4]]/tblPerbelanjaan[[#Totals],[m4]] -> 3% | V41: =tblPerbelanjaan[[#This Row],[m5]]/tblPerbelanjaan[[#Totals],[m5]] -> 5% | W41: =tblPerbelanjaan[[#This Row],[m6]]/tblPerbelanjaan[[#Totals],[m6]] -> 1% | X41: =tblPerbelanjaan[[#This Row],[m7]]/tblPerbelanjaan[[#Totals],[m7]] -> 5% | Y41: =tblPerbelanjaan[[#This Row],[m8]]/tblPerbelanjaan[[#Totals],[m8]] -> 7% | Z41: =tblPerbelanjaan[[#This Row],[m9]]/tblPerbelanjaan[[#Totals],[m9]] -> 4% | AA41: =tblPerbelanjaan[[#This Row],[m10]]/tblPerbelanjaan[[#Totals],[m10]] -> 2% | AB41: =tblPerbelanjaan[[#This Row],[m11]]/tblPerbelanjaan[[#Totals],[m11]] -> 7% | AC41: =tblPerbelanjaan[[#This Row],[m12]]/tblPerbelanjaan[[#Totals],[m12]] -> 8% | AD41: =tblPerbelanjaan[[#This Row],[Yearly]]/tblPerbelanjaan[[#Totals],[Yearly]] -> 5%
B42: Faedah | D42: RM3 | E42: RM2 | F42: RM19 | G42: RM21 | H42: RM13 | I42: RM9 | J42: RM7 | K42: RM13 | L42: RM3 | M42: RM6 | N42: RM10 | O42: RM13 | P42: =SUM(tblPerbelanjaan[[#This Row],[m1]:[m12]]) -> RM119 | Q42: 6% | R42: =tblPerbelanjaan[[#This Row],[m1]]/tblPerbelanjaan[[#Totals],[m1]] -> 1% | S42: =tblPerbelanjaan[[#This Row],[m2]]/tblPerbelanjaan[[#Totals],[m2]] -> 1% | T42: =tblPerbelanjaan[[#This Row],[m3]]/tblPerbelanjaan[[#Totals],[m3]] -> 8% | U42: =tblPerbelanjaan[[#This Row],[m4]]/tblPerbelanjaan[[#Totals],[m4]] -> 8% | V42: =tblPerbelanjaan[[#This Row],[m5]]/tblPerbelanjaan[[#Totals],[m5]] -> 5% | W42: =tblPerbelanjaan[[#This Row],[m6]]/tblPerbelanjaan[[#Totals],[m6]] -> 3% | X42: =tblPerbelanjaan[[#This Row],[m7]]/tblPerbelanjaan[[#Totals],[m7]] -> 3% | Y42: =tblPerbelanjaan[[#This Row],[m8]]/tblPerbelanjaan[[#Totals],[m8]] -> 6% | Z42: =tblPerbelanjaan[[#This Row],[m9]]/tblPerbelanjaan[[#Totals],[m9]] -> 1% | AA42: =tblPerbelanjaan[[#This Row],[m10]]/tblPerbelanjaan[[#Totals],[m10]] -> 2% | AB42: =tblPerbelanjaan[[#This Row],[m11]]/tblPerbelanjaan[[#Totals],[m11]] -> 3% | AC42: =tblPerbelanjaan[[#This Row],[m12]]/tblPerbelanjaan[[#Totals],[m12]] -> 6% | AD42: =tblPerbelanjaan[[#This Row],[Yearly]]/tblPerbelanjaan[[#Totals],[Yearly]] -> 4%
B43: Susut nilai | D43: RM8 | E43: RM7 | F43: RM6 | G43: RM7 | H43: RM7 | I43: RM6 | J43: RM15 | K43: RM23 | L43: RM21 | M43: RM16 | N43: RM19 | O43: RM7 | P43: =SUM(tblPerbelanjaan[[#This Row],[m1]:[m12]]) -> RM142 | Q43: 1% | R43: =tblPerbelanjaan[[#This Row],[m1]]/tblPerbelanjaan[[#Totals],[m1]] -> 3% | S43: =tblPerbelanjaan[[#This Row],[m2]]/tblPerbelanjaan[[#Totals],[m2]] -> 3% | T43: =tblPerbelanjaan[[#This Row],[m3]]/tblPerbelanjaan[[#Totals],[m3]] -> 2% | U43: =tblPerbelanjaan[[#This Row],[m4]]/tblPerbelanjaan[[#Totals],[m4]] -> 3% | V43: =tblPerbelanjaan[[#This Row],[m5]]/tblPerbelanjaan[[#Totals],[m5]] -> 3% | W43: =tblPerbelanjaan[[#This Row],[m6]]/tblPerbelanjaan[[#Totals],[m6]] -> 2% | X43: =tblPerbelanjaan[[#This Row],[m7]]/tblPerbelanjaan[[#Totals],[m7]] -> 6% | Y43: =tblPerbelanjaan[[#This Row],[m8]]/tblPerbelanjaan[[#Totals],[m8]] -> 10% | Z43: =tblPerbelanjaan[[#This Row],[m9]]/tblPerbelanjaan[[#Totals],[m9]] -> 9% | AA43: =tblPerbelanjaan[[#This Row],[m10]]/tblPerbelanjaan[[#Totals],[m10]] -> 6% | AB43: =tblPerbelanjaan[[#This Row],[m11]]/tblPerbelanjaan[[#Totals],[m11]] -> 6% | AC43: =tblPerbelanjaan[[#This Row],[m12]]/tblPerbelanjaan[[#Totals],[m12]] -> 3% | AD43: =tblPerbelanjaan[[#This Row],[Yearly]]/tblPerbelanjaan[[#Totals],[Yearly]] -> 5%
B44: Perbelanjaan lain (tentukan) | D44: RM14 | E44: RM4 | F44: RM24 | G44: RM6 | H44: RM20 | I44: RM14 | J44: RM21 | K44: RM20 | L44: RM22 | M44: RM3 | N44: RM14 | O44: RM6 | P44: =SUM(tblPerbelanjaan[[#This Row],[m1]:[m12]]) -> RM168 | Q44: 1% | R44: =tblPerbelanjaan[[#This Row],[m1]]/tblPerbelanjaan[[#Totals],[m1]] -> 6% | S44: =tblPerbelanjaan[[#This Row],[m2]]/tblPerbelanjaan[[#Totals],[m2]] -> 2% | T44: =tblPerbelanjaan[[#This Row],[m3]]/tblPerbelanjaan[[#Totals],[m3]] -> 10% | U44: =tblPerbelanjaan[[#This Row],[m4]]/tblPerbelanjaan[[#Totals],[m4]] -> 2% | V44: =tblPerbelanjaan[[#This Row],[m5]]/tblPerbelanjaan[[#Totals],[m5]] -> 8% | W44: =tblPerbelanjaan[[#This Row],[m6]]/tblPerbelanjaan[[#Totals],[m6]] -> 5% | X44: =tblPerbelanjaan[[#This Row],[m7]]/tblPerbelanjaan[[#Totals],[m7]] -> 8% | Y44: =tblPerbelanjaan[[#This Row],[m8]]/tblPerbelanjaan[[#Totals],[m8]] -> 9% | Z44: =tblPerbelanjaan[[#This Row],[m9]]/tblPerbelanjaan[[#Totals],[m9]] -> 10% | AA44: =tblPerbelanjaan[[#This Row],[m10]]/tblPerbelanjaan[[#Totals],[m10]] -> 1% | AB44: =tblPerbelanjaan[[#This Row],[m11]]/tblPerbelanjaan[[#Totals],[m11]] -> 5% | AC44: =tblPerbelanjaan[[#This Row],[m12]]/tblPerbelanjaan[[#Totals],[m12]] -> 3% | AD44: =tblPerbelanjaan[[#This Row],[Yearly]]/tblPerbelanjaan[[#Totals],[Yearly]] -> 6%
B45: Perbelanjaan lain (tentukan) | D45: RM14 | E45: RM7 | F45: RM24 | G45: RM10 | H45: RM7 | I45: RM24 | J45: RM2 | K45: RM11 | L45: RM21 | M45: RM19 | N45: RM19 | O45: RM20 | P45: =SUM(tblPerbelanjaan[[#This Row],[m1]:[m12]]) -> RM178 | Q45: 1% | R45: =tblPerbelanjaan[[#This Row],[m1]]/tblPerbelanjaan[[#Totals],[m1]] -> 6% | S45: =tblPerbelanjaan[[#This Row],[m2]]/tblPerbelanjaan[[#Totals],[m2]] -> 3% | T45: =tblPerbelanjaan[[#This Row],[m3]]/tblPerbelanjaan[[#Totals],[m3]] -> 10% | U45: =tblPerbelanjaan[[#This Row],[m4]]/tblPerbelanjaan[[#Totals],[m4]] -> 4% | V45: =tblPerbelanjaan[[#This Row],[m5]]/tblPerbelanjaan[[#Totals],[m5]] -> 3% | W45: =tblPerbelanjaan[[#This Row],[m6]]/tblPerbelanjaan[[#Totals],[m6]] -> 9% | X45: =tblPerbelanjaan[[#This Row],[m7]]/tblPerbelanjaan[[#Totals],[m7]] -> 1% | Y45: =tblPerbelanjaan[[#This Row],[m8]]/tblPerbelanjaan[[#Totals],[m8]] -> 5% | Z45: =tblPerbelanjaan[[#This Row],[m9]]/tblPerbelanjaan[[#Totals],[m9]] -> 9% | AA45: =tblPerbelanjaan[[#This Row],[m10]]/tblPerbelanjaan[[#Totals],[m10]] -> 7% | AB45: =tblPerbelanjaan[[#This Row],[m11]]/tblPerbelanjaan[[#Totals],[m11]] -> 6% | AC45: =tblPerbelanjaan[[#This Row],[m12]]/tblPerbelanjaan[[#Totals],[m12]] -> 9% | AD45: =tblPerbelanjaan[[#This Row],[Yearly]]/tblPerbelanjaan[[#Totals],[Yearly]] -> 6%
B46: Perbelanjaan lain (tentukan) | D46: RM11 | E46: RM8 | F46: RM25 | G46: RM11 | H46: RM9 | I46: RM24 | J46: RM13 | K46: RM14 | L46: RM19 | M46: RM24 | N46: RM15 | O46: RM7 | P46: =SUM(tblPerbelanjaan[[#This Row],[m1]:[m12]]) -> RM180 | Q46: 1% | R46: =tblPerbelanjaan[[#This Row],[m1]]/tblPerbelanjaan[[#Totals],[m1]] -> 5% | S46: =tblPerbelanjaan[[#This Row],[m2]]/tblPerbelanjaan[[#Totals],[m2]] -> 4% | T46: =tblPerbelanjaan[[#This Row],[m3]]/tblPerbelanjaan[[#Totals],[m3]] -> 10% | U46: =tblPerbelanjaan[[#This Row],[m4]]/tblPerbelanjaan[[#Totals],[m4]] -> 4% | V46: =tblPerbelanjaan[[#This Row],[m5]]/tblPerbelanjaan[[#Totals],[m5]] -> 4% | W46: =tblPerbelanjaan[[#This Row],[m6]]/tblPerbelanjaan[[#Totals],[m6]] -> 9% | X46: =tblPerbelanjaan[[#This Row],[m7]]/tblPerbelanjaan[[#Totals],[m7]] -> 5% | Y46: =tblPerbelanjaan[[#This Row],[m8]]/tblPerbelanjaan[[#Totals],[m8]] -> 6% | Z46: =tblPerbelanjaan[[#This Row],[m9]]/tblPerbelanjaan[[#Totals],[m9]] -> 8% | AA46: =tblPerbelanjaan[[#This Row],[m10]]/tblPerbelanjaan[[#Totals],[m10]] -> 9% | AB46: =tblPerbelanjaan[[#This Row],[m11]]/tblPerbelanjaan[[#Totals],[m11]] -> 5% | AC46: =tblPerbelanjaan[[#This Row],[m12]]/tblPerbelanjaan[[#Totals],[m12]] -> 3% | AD46: =tblPerbelanjaan[[#This Row],[Yearly]]/tblPerbelanjaan[[#Totals],[Yearly]] -> 6%
B47: Pelbagai (tidak ditentukan) | D47: RM8 | E47: RM20 | F47: RM11 | G47: RM11 | H47: RM11 | I47: RM20 | J47: RM12 | K47: RM16 | L47: RM5 | M47: RM7 | N47: RM21 | O47: RM3 | P47: =SUM(tblPerbelanjaan[[#This Row],[m1]:[m12]]) -> RM145 | Q47: 2% | R47: =tblPerbelanjaan[[#This Row],[m1]]/tblPerbelanjaan[[#Totals],[m1]] -> 3% | S47: =tblPerbelanjaan[[#This Row],[m2]]/tblPerbelanjaan[[#Totals],[m2]] -> 10% | T47: =tblPerbelanjaan[[#This Row],[m3]]/tblPerbelanjaan[[#Totals],[m3]] -> 4% | U47: =tblPerbelanjaan[[#This Row],[m4]]/tblPerbelanjaan[[#Totals],[m4]] -> 4% | V47: =tblPerbelanjaan[[#This Row],[m5]]/tblPerbelanjaan[[#Totals],[m5]] -> 4% | W47: =tblPerbelanjaan[[#This Row],[m6]]/tblPerbelanjaan[[#Totals],[m6]] -> 7% | X47: =tblPerbelanjaan[[#This Row],[m7]]/tblPerbelanjaan[[#Totals],[m7]] -> 5% | Y47: =tblPerbelanjaan[[#This Row],[m8]]/tblPerbelanjaan[[#Totals],[m8]] -> 7% | Z47: =tblPerbelanjaan[[#This Row],[m9]]/tblPerbelanjaan[[#Totals],[m9]] -> 2% | AA47: =tblPerbelanjaan[[#This Row],[m10]]/tblPerbelanjaan[[#Totals],[m10]] -> 3% | AB47: =tblPerbelanjaan[[#This Row],[m11]]/tblPerbelanjaan[[#Totals],[m11]] -> 7% | AC47: =tblPerbelanjaan[[#This Row],[m12]]/tblPerbelanjaan[[#Totals],[m12]] -> 1% | AD47: =tblPerbelanjaan[[#This Row],[Yearly]]/tblPerbelanjaan[[#Totals],[Yearly]] -> 5%
B48: JUMLAH PERBELANJAAN | D48: =SUBTOTAL(109,tblPerbelanjaan[m1]) -> RM236 | E48: =SUBTOTAL(109,tblPerbelanjaan[m2]) -> RM205 | F48: =SUBTOTAL(109,tblPerbelanjaan[m3]) -> RM249 | G48: =SUBTOTAL(109,tblPerbelanjaan[m4]) -> RM261 | H48: =SUBTOTAL(109,tblPerbelanjaan[m5]) -> RM257 | I48: =SUBTOTAL(109,tblPerbelanjaan[m6]) -> RM274 | J48: =SUBTOTAL(109,tblPerbelanjaan[m7]) -> RM266 | K48: =SUBTOTAL(109,tblPerbelanjaan[m8]) -> RM235 | L48: =SUBTOTAL(109,tblPerbelanjaan[m9]) -> RM230 | M48: =SUBTOTAL(109,tblPerbelanjaan[m10]) -> RM259 | N48: =SUBTOTAL(109,tblPerbelanjaan[m11]) -> RM296 | O48: =SUBTOTAL(109,tblPerbelanjaan[m12]) -> RM231 | P48: =SUBTOTAL(109,tblPerbelanjaan[Yearly]) -> RM2,999 | Q48: =SUBTOTAL(109,tblPerbelanjaan[Ind %]) -> 100% | R48: =SUBTOTAL(109,tblPerbelanjaan[% m1]) -> 100% | S48: =SUBTOTAL(109,tblPerbelanjaan[% m2]) -> 100% | T48: =SUBTOTAL(109,tblPerbelanjaan[% m3]) -> 100% | U48: =SUBTOTAL(109,tblPerbelanjaan[% m4]) -> 100% | V48: =SUBTOTAL(109,tblPerbelanjaan[% m5]) -> 100% | W48: =SUBTOTAL(109,tblPerbelanjaan[% m6]) -> 100% | X48: =SUBTOTAL(109,tblPerbelanjaan[% m7]) -> 100% | Y48: =SUBTOTAL(109,tblPerbelanjaan[% m8]) -> 100% | Z48: =SUBTOTAL(109,tblPerbelanjaan[% m9]) -> 100% | AA48: =SUBTOTAL(109,tblPerbelanjaan[% m10]) -> 100% | AB48: =SUBTOTAL(109,tblPerbelanjaan[% m11]) -> 100% | AC48: =SUBTOTAL(109,tblPerbelanjaan[% m12]) -> 100% | AD48: =SUBTOTAL(109,tblPerbelanjaan[% y]) -> 100%
B50: Untung Bersih | D50: =D26-tblPerbelanjaan[[#Totals],[m1]] -> RM123 | E50: =E26-tblPerbelanjaan[[#Totals],[m2]] -> RM175 | F50: =F26-tblPerbelanjaan[[#Totals],[m3]] -> RM256 | G50: =G26-tblPerbelanjaan[[#Totals],[m4]] -> RM109 | H50: =H26-tblPerbelanjaan[[#Totals],[m5]] -> RM156 | I50: =I26-tblPerbelanjaan[[#Totals],[m6]] -> RM(8) | J50: =J26-tblPerbelanjaan[[#Totals],[m7]] -> RM32 | K50: =K26-tblPerbelanjaan[[#Totals],[m8]] -> RM214 | L50: =L26-tblPerbelanjaan[[#Totals],[m9]] -> RM100 | M50: =M26-tblPerbelanjaan[[#Totals],[m10]] -> RM148 | N50: =N26-tblPerbelanjaan[[#Totals],[m11]] -> RM179 | O50: =O26-tblPerbelanjaan[[#Totals],[m12]] -> RM359 | P50: =SUM(D50:O50) -> RM1,843 | R50: =D50/$P$50 -> 7% | S50: =E50/$P$50 -> 9% | T50: 14% | U50: 6% | V50: 8% | W50: -0% | X50: 2% | Y50: 12% | Z50: 5% | AA50: 8% | AB50: 10% | AC50: 19% | AD50: 100%
